bitfinex/quotes_ETHUSD_20260306
["timestamp","ask_amount","ask_price","bid_price","bid_amount"]
[1772758256285,2.78806541,2072.6,2072.5,0.0011]
[1772758257601,3.99427982,2072.6,2072.5,0.0011]
[1772758261534,2.78806541,2072.5,2072.3,0.0011]
[1772758261736,2.78806541,2072.4,2072.0,0.0011]
[1772758261900,2.78806541,2072.4,2071.7,0.0011]
[1772758262100,2.78806541,2072.2,2071.7,0.0011]
[1772758262625,2.78806541,2072.0,2071.5,0.0011]
[1772758262925,2.78751541,2071.6,2071.2,0.0011]
[1772758263726,2.78751541,2071.4,2070.5,4.82969639]
[1772758263917,2.78751541,2071.2,2070.5,1.20743781]
[1772758265424,2.78751541,2071.2,2070.4,2.50948821]
[1772758266018,3.83121659,2071.1,2070.5,2.62631342]
[1772758266802,1.20708802,2071.1,2070.5,2.62631342]
[1772758268047,2.56500206,2071.5,2070.4,2.50945405]
[1772758268048,1.20691319,2071.4,2070.4,2.50945405]
[1772758268328,0.17645056,2071.3,2070.5,2.84927076]
[1772758269101,0.17645056,2071.3,2070.7,0.0011]
[1772758269918,0.1812811,2071.1,2070.7,0.0011]
[1772758270536,1.824,2071.1,2070.7,0.0011]
[1772758271934,6.65258522,2071.1,2070.7,0.0011]
[1772758273609,9.21758728,2071.1,2070.7,0.0011]
[1772758275240,6.65258522,2071.1,2070.7,0.0011]
[1772758275561,2.56500206,2070.9,2069.5,6.5]
[1772758275848,2.56500206,2070.9,2069.6,16.0]
[1772758275849,0.29456512,2070.8,2069.6,16.0]
[1772758276052,0.29456512,2070.8,2069.3,6.5]
[1772758276053,1.20726289,2070.8,2069.3,6.5]
[1772758276563,2.56500206,2069.7,2068.9,23.55008793]
[1772758276857,0.33540915,2069.8,2069.0,12.55207526]
[1772758277065,0.72550783,2069.9,2069.1,6.5]
[1772758277360,1.795,2069.8,2068.9,12.55207526]
[1772758277526,2.65758241,2069.8,2068.9,12.55207526]
[1772758277724,2.65758241,2069.8,2068.8,6.50981666]
[1772758277958,0.065536,2069.7,2068.9,12.55207526]
[1772758278160,2.62412857,2069.5,2068.3,3.25]
[1772758279997,2.62412857,2069.1,2067.3,0.1111663]
[1772758280169,2.62412857,2068.9,2067.4,2.62631342]
[1772758280326,1.20831319,2069.0,2067.4,2.62631342]
[1772758280524,2.62412857,2068.9,2067.4,2.62631342]
[1772758280951,2.62412857,2068.9,2067.6,2.62631342]
[1772758281149,2.62412857,2068.9,2067.7,2.62631342]
[1772758281763,2.62512857,2068.9,2067.7,2.62631342]
[1772758281946,0.001,2068.9,2067.7,2.62631342]
[1772758282150,4.83164403,2069.7,2067.7,2.62631342]
[1772758282151,2.62412857,2069.5,2068.2,2.62631342]
[1772758282849,0.86258241,2069.8,2068.2,2.62631342]
[1772758283174,0.86258241,2069.8,2068.4,2.62631342]
[1772758283468,2.07045845,2069.8,2068.6,2.62631342]
[1772758283763,2.62412857,2069.7,2068.6,2.62631342]
[1772758284370,2.62412857,2069.5,2068.6,2.62631342]
[1772758284536,2.62412857,2069.5,2068.6,3.83484981]
[1772758284739,2.62412857,2069.5,2068.7,2.62631342]
[1772758285059,2.62412857,2069.5,2068.4,2.62631342]
[1772758285260,2.62412857,2069.5,2068.2,2.62631342]
[1772758285564,1.20796289,2069.6,2068.2,2.62631342]
[1772758285748,3.83209146,2069.6,2068.2,2.62631342]
[1772758285948,1.20796289,2069.6,2068.2,2.62631342]
[1772758286343,2.07047283,2069.8,2068.3,1.20872213]
[1772758286548,2.07044448,2069.8,2068.4,2.62631342]
[1772758288235,1.20749613,2070.4,2068.5,6.04580675]
[1772758288473,1.20749613,2070.4,2068.7,6.04580675]
[1772758288649,1.20749613,2070.4,2068.9,6.04580675]
[1772758288978,7.17322755,2070.4,2068.9,6.04580675]
[1772758289886,1.2073795,2070.6,2068.9,6.04580675]
[1772758290488,1.53372904,2070.7,2069.3,6.04765906]
[1772758291384,0.32640006,2070.7,2069.3,6.04765906]
[1772758292393,5.85013949,2070.6,2069.3,6.04765906]
[1772758292572,1.20743781,2070.5,2069.5,6.04765906]
[1772758292883,7.0575773,2070.5,2069.5,6.04765906]
[1772758295010,7.0585773,2070.5,2069.6,1.20796289]
[1772758295665,7.0585773,2070.5,2069.6,7.25562195]
[1772758297182,7.0585773,2070.5,2069.2,7.25585546]
[1772758300169,0.001,2070.5,2069.2,7.25585546]
[1772758300371,1.20848084,2070.5,2069.2,7.25585546]
[1772758301300,7.05862033,2070.5,2069.4,6.04765906]
[1772758301650,7.05862033,2070.5,2069.5,1.308]
[1772758301877,7.05862033,2070.5,2069.5,7.35565906]
[1772758302261,7.05862033,2070.5,2069.6,7.25562195]
[1772758304983,7.05862033,2070.5,2069.4,6.04765906]
[1772758306161,1.20845773,2070.5,2069.4,6.04765906]
[1772758306387,1.20845773,2070.5,2069.6,6.04765906]
[1772758306388,0.001,2070.5,2069.6,6.04765906]
[1772758309284,0.001,2070.5,2069.8,6.04765906]
[1772758311493,0.001,2070.5,2069.9,7.25544687]
[1772758312193,0.001,2070.5,2070.0,6.04765906]
[1772758313194,5.85113949,2070.5,2069.8,1.20780698]
[1772758314220,1.20749613,2070.4,2069.8,1.20780698]
[1772758315203,1.20749613,2070.4,2069.8,7.25546604]
[1772758315595,1.20749613,2070.4,2069.8,8.57946604]
[1772758316817,7.05763562,2070.4,2069.8,8.57946604]
[1772758318491,7.05763562,2070.4,2069.8,7.25546604]
[1772758318692,7.05763562,2070.4,2069.9,1.326]
[1772758319303,0.001,2070.3,2069.9,1.326]
[1772758319500,0.001,2070.5,2070.0,6.04765906]
[1772758320324,1.2072426,2070.9,2070.1,2.53504581]
[1772758320510,1.2072426,2070.9,2070.2,6.16461291]
[1772758321203,4.82869428,2071.0,2070.3,1.20755446]
[1772758321417,5.93494981,2070.9,2070.2,6.16461291]
[1772758321617,5.93494981,2070.9,2070.2,1.328]
[1772758322325,1.2071463,2071.0,2070.1,7.49361291]
[1772758323306,5.93494981,2071.0,2070.2,7.3722257]
[1772758323901,5.93494981,2071.2,2070.2,7.3722257]
[1772758324110,1.814,2071.7,2070.2,7.3722257]
[1772758324111,10.76213757,2071.6,2070.2,7.3722257]
[1772758324432,5.93494981,2071.5,2070.2,7.3722257]
[1772758325526,1.20691319,2071.4,2070.2,7.3722257]
[1772758326621,7.141863,2071.4,2070.2,7.3722257]
[1772758327935,7.14162999,2071.8,2070.2,7.3722257]
[1772758328110,1.20668018,2071.8,2070.2,7.6261605]
[1772758329202,1.20666253,2071.9,2070.2,7.6261605]
[1772758329532,1.53288239,2072.0,2070.6,6.16461291]
[1772758329706,1.53288239,2072.0,2070.5,1.20743781]
[1772758329707,1.53288239,2072.0,2070.8,6.16461291]
[1772758329906,0.32627964,2072.0,2070.8,6.16461291]
[1772758330116,1.20653076,2072.1,2070.8,6.16461291]
[1772758331531,4.82566307,2072.3,2071.0,6.16461291]
[1772758332706,7.14131954,2072.4,2071.0,6.23014891]
[1772758333103,4.8249762,2072.6,2071.0,6.23014891]
[1772758333510,1.20621441,2072.6,2071.2,6.23014891]
[1772758333737,1.20621441,2072.6,2071.4,6.16461291]
[1772758334232,1.20621441,2072.6,2071.6,6.16461291]
[1772758334233,7.14116422,2072.6,2071.6,6.16461291]
[1772758336606,7.14116422,2072.6,2071.8,6.16461291]
[1772758337013,7.14116422,2072.6,2071.8,1.336]
[1772758338543,7.14116422,2072.6,2071.7,1.336]
[1772758338741,7.14116422,2072.6,2071.6,7.37136455]
[1772758339046,7.14116422,2072.6,2071.7,1.336]
[1772758340065,7.14116422,2072.6,2071.6,7.37136455]
[1772758340245,7.14116422,2072.6,2071.7,1.336]
[1772758340418,7.14116422,2072.6,2071.4,7.37149352]
[1772758340614,7.14116422,2072.6,2071.4,8.70749352]
[1772758341442,7.14116422,2072.6,2071.5,1.336]
[1772758341817,7.14116422,2072.6,2071.3,1.2069324]
[1772758341818,7.14116422,2072.6,2071.3,1.336]
[1772758342442,7.14116422,2072.6,2071.3,7.50061291]
[1772758343727,5.93494981,2072.4,2071.1,6.16461291]
[1772758343932,5.93494981,2072.2,2071.1,7.50061291]
[1772758345142,5.93494981,2072.2,2071.1,6.16461291]
[1772758345343,5.93494981,2072.2,2071.1,7.50061291]
[1772758345751,5.93494981,2072.2,2071.2,1.20702974]
[1772758345752,1.20650547,2072.1,2071.2,1.20702974]
[1772758345948,1.20650547,2072.1,2071.3,6.16571291]
[1772758346451,1.20646477,2072.2,2072.0,2.560386]
[1772758346649,1.20646477,2072.2,2072.1,5.120772]
[1772758346859,5.93494981,2072.6,2072.1,5.120772]
[1772758347154,1.20615622,2072.8,2071.8,9.060386]
[1772758347448,4.88992812,2073.1,2072.6,1.00068394]
[1772758347653,1.20615622,2072.8,2072.2,2.560386]
[1772758347833,1.20615622,2072.8,2071.8,5.120772]
[1772758348219,2.56038599,2072.4,2071.8,5.120772]
[1772758348419,5.09741879,2072.9,2071.8,5.120772]
[1772758348625,5.03188279,2072.9,2071.9,6.5]
[1772758348847,5.03188279,2072.9,2072.6,2.560386]
[1772758349154,3.02103984,2073.0,2072.4,5.120772]
[1772758349322,4.82439212,2072.9,2072.4,5.120772]
[1772758349519,1.20603984,2072.9,2072.4,5.120772]
[1772758349729,1.20603984,2072.9,2072.7,2.560386]
[1772758349953,0.001,2073.0,2072.1,7.70648387]
[1772758350126,2.21043555,2072.9,2072.1,7.70649339]
[1772758350450,2.21043555,2072.9,2072.6,2.560386]
[1772758350749,2.21043555,2072.9,2072.6,2.55994794]
[1772758351247,2.21043555,2072.9,2072.1,7.70649339]
[1772758351854,2.21043555,2072.9,2072.6,2.55994794]
[1772758352151,1.20609803,2072.8,2072.6,2.55994794]
[1772758354149,0.001,2073.0,2072.6,2.55994794]
[1772758355220,2.21043555,2072.7,2072.6,2.55994794]
[1772758355430,2.11015144,2072.7,2072.6,2.55994794]
[1772758359454,2.11115144,2072.7,2072.6,2.55994794]
[1772758361553,3.31730766,2072.7,2072.6,2.55994794]
[1772758361739,2.11115144,2072.7,2072.6,2.55994794]
[1772758361939,3.31730766,2072.7,2072.4,1.337]
[1772758362160,2.11115144,2072.7,2072.4,1.337]
[1772758362347,3.31732036,2072.7,2072.4,1.337]
[1772758362535,3.31732144,2072.7,2072.3,6.5011]
[1772758366564,3.31732144,2072.7,2072.3,0.0011]
[1772758368864,3.31731721,2072.7,2072.3,0.0011]
[1772758369072,3.31731721,2072.7,2072.3,6.5011]
[1772758370150,3.31731721,2072.7,2072.3,0.0011]
[1772758370343,1.20716577,2072.7,2072.3,0.0011]
[1772758370742,0.001,2072.7,2072.0,0.0011]
[1772758372341,2.11015144,2072.6,2072.0,0.0011]
[1772758372555,2.11015144,2072.6,2072.0,6.5011]
[1772758372943,1.20627261,2072.5,2072.0,6.5011]
[1772758373180,1.20627261,2072.5,2072.3,0.0011]
[1772758373356,1.20627261,2072.5,2072.3,0.00022087]
[1772758375148,4.82580479,2072.7,2072.3,0.00022087]
[1772758376470,2.11015144,2072.6,2072.3,0.00022087]
[1772758377374,1.20627261,2072.5,2072.3,0.00022087]
[1772758378075,5.85447522,2072.4,2071.6,6.29545639]
[1772758378375,5.85447522,2072.4,2071.5,6.63793759]
[1772758379545,5.85447522,2072.2,2071.5,6.63793759]
[1772758379751,1.20638903,2072.3,2071.5,7.84478425]
[1772758380371,3.31654047,2072.3,2071.5,7.84478425]
[1772758385993,3.31654047,2072.3,2071.7,0.0011]
[1772758386292,3.31654047,2072.3,2071.8,6.41266475]
[1772758387077,2.11015144,2072.3,2072.0,6.41266475]
[1772758387271,1.20731017,2072.5,2072.0,6.41266475]
[1772758387786,0.001,2072.5,2072.0,6.41266475]
[1772758388394,0.001,2072.5,2072.2,6.41266475]
[1772758390572,0.001,2072.5,2072.2,7.61909759]
[1772758393272,0.001,2073.0,2072.7,6.41266475]
[1772758396706,0.001,2073.0,2072.7,7.76366475]
[1772758397114,0.001,2073.0,2072.5,1.20626694]
[1772758397292,0.001,2073.0,2072.6,1.351]
[1772758397293,6.17211982,2073.0,2072.6,1.351]
[1772758397479,6.17211982,2073.0,2072.4,1.351]
[1772758398080,6.17111982,2072.8,2072.4,1.351]
[1772758398504,6.17111982,2072.8,2072.4,1.352]
[1772758399100,6.17211982,2072.8,2072.4,1.352]
[1772758399993,6.17111982,2072.6,2072.2,3.82]
[1772758400186,6.17111982,2072.6,2072.1,7.76566475]
[1772758400818,6.17111982,2072.6,2072.1,1.353]
[1772758401014,6.17111982,2072.6,2072.1,1.25181589]
[1772758401203,6.17111982,2072.6,2071.7,7.76776475]
[1772758401512,6.17111982,2072.6,2071.8,6.41266475]
[1772758402588,6.17111982,2072.4,2071.7,0.0011]
[1772758404788,6.17111982,2072.2,2071.7,0.0011]
[1772758406794,1.20638903,2072.3,2071.7,7.62048234]
[1772758408708,1.20638903,2072.3,2071.7,6.41376475]
[1772758408898,1.20638903,2072.3,2071.7,7.6204998]
[1772758410187,7.37748857,2072.4,2071.7,7.6204998]
[1772758410386,7.37747006,2072.4,2071.7,7.6204998]
[1772758410712,1.20635024,2072.4,2072.0,6.34857227]
[1772758410908,7.2696523,2072.4,2072.0,6.34857227]
[1772758411501,7.2696523,2072.4,2071.9,0.001]
[1772758412088,1.20615622,2072.7,2071.9,7.55616957]
[1772758412288,6.06330206,2072.6,2071.9,7.55616957]
[1772758413104,7.26957467,2072.5,2071.9,7.55616957]
[1772758413713,7.26957467,2072.5,2071.9,6.34957227]
[1772758414017,7.26957467,2072.5,2071.9,7.70857227]
[1772758414786,6.06330206,2072.2,2071.9,0.001]
[1772758415217,7.26980753,2072.1,2071.9,0.001]
[1772758415687,1.20650547,2072.1,2071.9,0.001]
[1772758416084,7.26980753,2072.1,2071.9,0.001]
[1772758416912,6.06330206,2072.3,2071.9,0.001]
[1772758417118,7.26970594,2072.3,2071.9,1.20762194]
[1772758417618,1.20633202,2072.4,2071.9,7.55619421]
[1772758417819,1.20615622,2072.7,2072.1,6.34857227]
[1772758418014,1.20712484,2072.8,2072.1,6.34857227]
[1772758418418,1.2071079,2072.8,2072.1,6.34857227]
[1772758419234,7.27040996,2072.8,2072.1,7.55503646]
[1772758420420,7.27040996,2072.8,2072.1,6.34857227]
[1772758420614,7.27040996,2072.8,2072.2,7.70957227]
[1772758424414,7.27040996,2072.8,2072.2,7.71067227]
[1772758424737,0.001,2072.6,2072.2,7.71067227]
[1772758426530,1.20721441,2072.6,2072.2,7.71067227]
[1772758426729,0.001,2072.6,2072.2,8.91711855]
[1772758427028,0.001,2072.6,2072.3,6.34857227]
[1772758427435,1.20710682,2072.8,2072.4,6.34857227]
[1772758427621,1.20711835,2072.8,2072.4,6.34857227]
[1772758428506,6.06430206,2072.8,2072.2,6.34967227]
[1772758428737,6.06430206,2072.8,2072.2,0.0011]
[1772758429032,6.06430206,2072.8,2072.2,1.3641]
[1772758430934,7.26945828,2072.7,2072.2,0.0011]
[1772758432019,7.26945828,2072.7,2072.3,6.34857227]
[1772758433242,7.26945828,2072.7,2072.2,0.0011]
[1772758433441,7.26945828,2072.7,2072.2,6.34967227]
[1772758434024,7.26945828,2072.7,2072.2,0.0011]
[1772758436114,7.26945828,2072.7,2072.2,6.34967227]
[1772758438645,7.26945828,2072.7,2072.4,0.0011]
[1772758438822,0.001,2072.5,2072.4,0.0011]
[1772758440131,0.001,2072.5,2072.4,6.47403322]
[1772758440326,7.2694644,2072.7,2072.4,6.47403322]
[1772758440658,1.20699029,2073.0,2072.5,6.47293322]
[1772758440942,0.001,2073.0,2072.5,7.83993322]
[1772758441330,1.20698184,2073.0,2072.5,7.83993322]
[1772758441637,0.001,2073.0,2072.5,7.83993322]
[1772758441823,1.2069828,2073.0,2072.5,7.83993322]
[1772758442022,0.001,2073.0,2072.5,7.83993322]
[1772758442918,0.001,2073.0,2072.7,6.47293322]
[1772758444938,0.001,2073.0,2072.9,6.47293322]
[1772758445214,0.001,2073.0,2072.9,7.84093322]
[1772758446344,0.002,2073.3,2073.0,6.47293322]
[1772758446953,0.002,2073.3,2073.1,1.20592349]
[1772758447153,0.002,2073.3,2073.1,7.67885671]
[1772758447318,0.002,2073.6,2073.2,6.47293322]
[1772758447525,0.002,2073.6,2073.4,6.47293322]
[1772758448930,0.002,2073.6,2073.4,7.84293322]
[1772758449120,1.20763702,2073.6,2073.4,1.37]
[1772758449639,0.002,2073.6,2073.4,7.84293322]
[1772758450641,0.002,2073.6,2073.4,9.04866551]
[1772758451027,0.002,2073.8,2073.6,6.47293322]
[1772758451224,0.002,2073.8,2073.6,7.67855385]
[1772758453453,0.002,2073.8,2073.6,6.47293322]
[1772758454651,6.2895532,2073.8,2073.3,1.373]
[1772758454849,0.002,2073.8,2073.3,7.84593322]
[1772758455230,0.002,2073.8,2073.5,6.47293322]
[1772758458434,0.002,2073.8,2073.5,7.67858665]
[1772758460065,0.002,2073.8,2073.5,6.47293322]
[1772758461749,0.002,2073.8,2073.6,1.378]
[1772758462441,0.002,2073.8,2073.6,7.85093322]
[1772758462848,6.2895532,2073.8,2073.5,1.378]
[1772758463570,7.49511854,2073.8,2073.5,1.378]
[1772758464555,7.49511854,2073.8,2073.4,6.47293322]
[1772758464865,7.49511854,2073.8,2073.5,1.379]
[1772758465349,7.49511854,2073.8,2073.7,0.001]
[1772758468558,1.20756534,2073.8,2073.7,0.001]
[1772758469372,7.68819725,2073.8,2073.7,0.001]
[1772758475167,7.68819725,2073.8,2073.3,6.40920966]
[1772758475362,7.68819725,2073.8,2073.4,1.385]
[1772758476087,0.002,2073.8,2073.4,7.79420966]
[1772758476669,7.19640116,2074.1,2073.6,6.40920966]
[1772758478168,5.99101613,2074.0,2073.4,6.40920966]
[1772758478368,5.99101613,2074.0,2073.5,1.386]
[1772758478674,5.99101613,2073.8,2073.5,1.387]
[1772758478874,5.99301613,2073.6,2073.5,1.387]
[1772758479188,5.99301613,2073.6,2073.4,1.387]
[1772758481792,7.19869242,2073.6,2073.3,6.41020966]
[1772758482389,0.002,2073.6,2073.3,7.61600629]
[1772758483269,0.002,2073.8,2073.6,6.40920966]
[1772758484191,5.99301613,2073.8,2073.4,6.40920966]
[1772758486291,7.1965907,2073.7,2073.4,6.40920966]
[1772758488366,7.1965907,2073.7,2073.3,0.001]
[1772758488691,7.1965907,2073.7,2073.3,7.80220966]
[1772758489095,7.1965907,2073.7,2073.3,9.00801556]
[1772758489591,7.1965907,2073.7,2073.3,7.80220966]
[1772758490297,7.1965907,2073.7,2073.3,9.00801217]
[1772758490479,7.1965907,2073.7,2073.3,7.80220966]
[1772758490680,0.002,2073.8,2073.4,6.40920966]
[1772758491800,5.99101613,2074.1,2073.7,6.40920966]
[1772758491974,7.19634704,2074.2,2073.7,7.33410246]
[1772758492896,0.002,2074.1,2073.8,6.40920966]
[1772758498107,0.002,2074.1,2073.8,7.61471074]
[1772758498408,0.002,2074.1,2073.8,6.40920966]
[1772758498598,5.99101613,2074.0,2073.7,1.399]
[1772758499607,5.99101613,2074.0,2073.7,7.80820966]
[1772758499975,5.99101613,2074.0,2073.7,9.01377062]
[1772758500181,1.20736966,2074.1,2073.7,9.01377062]
[1772758500402,6.1331009,2074.1,2073.8,5.98157333]
[1772758500600,0.002,2074.1,2073.8,5.98157333]
[1772758501809,7.33844693,2074.1,2073.7,8.58613429]
[1772758502303,7.33844693,2074.1,2073.5,5.98257333]
[1772758502504,7.33844693,2074.1,2073.5,0.001]
[1772758502710,6.1311009,2074.0,2073.5,0.001]
[1772758504142,6.1311009,2074.0,2073.1,4.63920582]
[1772758504289,6.1311009,2073.8,2073.0,0.001]
[1772758504819,6.1311009,2073.8,2073.4,0.001]
[1772758506390,6.1311009,2073.6,2073.4,0.001]
[1772758508821,7.33679176,2073.5,2073.4,0.001]
[1772758509822,7.33679176,2073.5,2073.1,0.001]
[1772758512619,1.20569794,2073.5,2073.1,4.64120582]
[1772758512823,4.82254354,2073.6,2073.1,4.64120582]
[1772758512824,1.20568003,2073.6,2073.1,4.64120582]
[1772758513026,6.1311009,2073.7,2073.2,4.64020582]
[1772758513223,7.3366834,2073.7,2073.2,4.64020582]
[1772758513694,1.2055579,2073.8,2073.2,4.64020582]
[1772758515523,7.33858932,2073.9,2073.4,4.64020582]
[1772758515715,0.002,2073.9,2073.4,4.64020582]
[1772758517708,0.002,2073.9,2073.6,4.64020582]
[1772758519910,0.002,2073.9,2073.3,2.61477723]
[1772758519911,6.1311009,2073.8,2073.3,2.61477723]
[1772758520277,6.1311009,2073.8,2073.4,4.64020582]
[1772758521225,0.002,2073.9,2073.4,4.64020582]
[1772758522311,0.002,2073.9,2073.6,4.64020582]
[1772758524637,0.002,2073.9,2073.7,1.20557457]
[1772758526141,0.002,2073.9,2073.7,5.84578039]
[1772758527336,0.002,2073.9,2073.7,5.84576832]
[1772758528150,0.002,2073.9,2073.7,1.2055625]
[1772758528333,0.002,2073.9,2073.8,4.64020582]
[1772758528532,6.1331009,2074.1,2073.8,4.64020582]
[1772758528533,0.002,2074.1,2073.8,4.64020582]
[1772758529211,0.002,2074.1,2073.9,1.20545831]
[1772758529405,0.002,2074.1,2073.8,5.84370073]
[1772758529647,6.49734205,2074.1,2073.7,1.412]
[1772758530215,6.49734205,2074.1,2073.7,6.05020582]
[1772758531439,6.49734205,2074.1,2073.8,1.20551644]
[1772758531650,0.002,2073.9,2073.8,1.20551644]
[1772758534354,7.70271419,2074.1,2073.6,0.001]
[1772758534523,7.70271419,2074.1,2073.6,1.416]
[1772758535226,7.70271419,2074.1,2073.6,0.001]
[1772758535419,7.70271419,2074.1,2073.6,1.20663061]
[1772758537468,7.70271419,2074.1,2073.6,0.001]
[1772758540838,6.16580563,2073.9,2073.4,0.001]
[1772758543361,6.16580563,2073.7,2073.4,0.001]
[1772758544775,6.16580563,2073.7,2073.6,0.001]
[1772758545568,1.20745857,2073.9,2073.6,0.001]
[1772758545569,6.16580563,2073.8,2073.6,0.001]
[1772758547562,1.20746862,2073.9,2073.6,4.64020582]
[1772758547867,7.37327425,2073.9,2073.6,4.64020582]
[1772758548363,0.002,2073.9,2073.6,4.64020582]
[1772758549268,0.002,2074.1,2073.7,4.63920582]
[1772758549468,0.002,2074.1,2073.7,4.68735112]
[1772758549843,0.002,2074.1,2073.9,4.63920582]
[1772758552642,6.16780563,2074.1,2073.7,1.20554142]
[1772758554745,6.16780563,2074.1,2073.7,5.84474724]
[1772758557151,6.16580563,2074.4,2073.8,4.63920582]
[1772758557646,6.16580563,2074.4,2073.8,4.64020582]
[1772758557861,0.002,2073.9,2073.8,4.64020582]
[1772758559255,0.002,2074.1,2073.9,7.56980975]
[1772758561772,5.94034995,2074.1,2073.8,0.001]
[1772758562060,5.94034995,2074.1,2073.8,7.18518681]
[1772758562454,0.002,2074.1,2073.8,7.18518681]
[1772758562676,0.002,2074.1,2073.8,5.97967176]
[1772758562879,5.94034995,2074.1,2073.8,7.18516464]
[1772758563094,5.94034995,2074.1,2073.8,5.97967176]
[1772758564384,0.002,2074.1,2073.8,7.18517972]
[1772758566383,0.002,2074.1,2073.8,5.97967176]
[1772758567182,0.002,2074.1,2073.8,7.18517772]
[1772758567984,0.002,2074.1,2073.8,5.97967176]
[1772758568186,0.002,2074.1,2073.8,7.18518279]
[1772758570497,7.14343473,2074.6,2073.9,5.97867176]
[1772758570688,7.14343473,2074.6,2073.9,7.41367176]
[1772758571392,7.14343473,2074.6,2074.1,5.97867176]
[1772758572100,5.94034995,2074.4,2074.1,5.97867176]
[1772758573894,5.94034995,2074.4,2074.1,7.18399846]
[1772758574707,7.14552798,2074.4,2074.1,5.97867176]
[1772758574911,1.20541833,2073.9,2073.8,0.001]
[1772758575200,0.56912361,2073.9,2073.8,7.1851882]
[1772758576190,5.93834995,2074.2,2073.8,7.1851882]
[1772758576775,7.14364761,2074.2,2073.8,7.1851882]
[1772758576975,5.93834995,2074.2,2073.8,7.1851882]
[1772758577989,5.93834995,2074.2,2073.8,5.97967176]
[1772758578308,5.93834995,2074.2,2073.8,0.001]
[1772758578309,7.14363938,2074.2,2073.8,0.001]
[1772758579213,7.14363938,2074.2,2073.3,2.80933817]
[1772758579214,5.93834995,2074.0,2073.3,2.80933817]
[1772758579415,5.93834995,2074.0,2073.1,4.82733969]
[1772758579572,5.93834995,2073.8,2073.1,7.47424003]
[1772758580403,5.93834995,2073.8,2073.2,4.82633969]
[1772758583817,7.14392452,2073.7,2073.4,0.001]
[1772758585600,5.93834995,2073.7,2073.4,0.001]
[1772758585908,5.93834995,2073.7,2073.4,4.82733969]
[1772758587860,5.93834995,2073.7,2073.5,1.20569086]
[1772758588891,6.43064595,2073.9,2073.5,6.03203055]
[1772758589519,6.43064595,2073.9,2073.6,4.82633969]
[1772758589820,5.88089735,2074.0,2073.7,6.03191426]
[1772758589999,5.88089735,2074.0,2073.7,4.82633969]
[1772758590320,5.88089735,2074.0,2073.5,7.4790057]
[1772758590483,5.88089735,2074.0,2073.5,7.47901835]
[1772758590900,5.88089735,2074.0,2073.5,7.48001835]
[1772758591827,7.0863552,2074.0,2073.5,7.48001835]
[1772758592235,5.88089735,2074.0,2073.6,4.82633969]
[1772758592517,0.002,2074.0,2073.6,4.82633969]
[1772758592897,5.88089735,2074.2,2073.6,4.82633969]
[1772758596607,5.88089735,2074.2,2073.7,6.03291426]
[1772758596805,0.002,2074.0,2073.7,6.03291426]
[1772758604311,0.002,2074.0,2073.8,0.00964423]
[1772758604510,0.002,2074.0,2073.9,4.82633969]
[1772758604820,5.88089735,2074.0,2073.7,6.03291426]
[1772758605003,0.002,2074.0,2073.8,1.458]
[1772758606015,0.002,2074.0,2073.7,6.03291426]
[1772758606222,5.88089735,2074.0,2073.8,1.46]
[1772758610639,5.87889735,2074.1,2073.9,1.20545831]
[1772758611338,5.87889735,2074.1,2073.8,2.66547083]
[1772758619442,5.87889735,2074.1,2073.8,8.93205316]
[1772758622748,5.87889735,2074.1,2074.0,0.001]
[1772758622920,6.10713945,2074.2,2074.0,0.001]
[1772758623611,0.002,2074.1,2074.0,0.001]
[1772758623813,6.10713945,2074.1,2074.0,0.001]
[1772758624743,1.20540019,2074.0,2073.8,0.001]
[1772758624941,6.10513945,2073.9,2073.8,0.001]
[1772758627151,7.31059776,2073.9,2073.8,0.001]
[1772758628049,7.31059776,2073.9,2073.5,0.001]
[1772758628050,6.10513945,2073.8,2073.5,0.001]
[1772758628250,6.10513945,2073.7,2073.4,0.001]
[1772758628423,6.10513945,2073.7,2073.1,0.001]
[1772758628744,6.10513945,2073.7,2073.2,0.004]
[1772758629119,6.10513945,2073.5,2073.2,0.004]
[1772758630923,6.10513945,2073.5,2073.1,0.001]
[1772758631125,6.10513945,2073.3,2073.1,0.001]
[1772758631846,6.10513945,2073.5,2073.1,6.02049894]
[1772758632878,7.31083851,2073.5,2073.1,6.02049894]
[1772758633350,7.31083851,2073.5,2073.1,7.22638651]
[1772758633351,7.31083294,2073.5,2073.1,7.22638651]
[1772758633925,6.10513945,2073.5,2073.1,7.22638651]
[1772758634953,1.20552606,2073.8,2073.1,7.22638651]
[1772758635134,7.31069141,2073.8,2073.3,6.01949894]
[1772758635455,7.31069141,2073.8,2073.2,1.487]
[1772758635456,7.31069141,2073.8,2073.4,7.22524795]
[1772758635619,7.31069141,2073.8,2073.4,6.01949894]
[1772758635824,6.10513945,2073.8,2073.4,6.01949894]
[1772758636119,7.31066782,2073.8,2073.4,6.01949894]
[1772758637052,6.10513945,2073.8,2073.4,6.01949894]
[1772758637559,6.10513945,2073.8,2073.5,7.2251898]
[1772758638543,6.10513945,2073.8,2073.5,6.01949894]
[1772758638544,7.31065924,2073.8,2073.5,6.01949894]
[1772758643864,7.31065924,2073.8,2073.4,7.22520216]
[1772758646668,6.10513945,2073.8,2073.4,7.22520216]
[1772758647354,7.31066521,2073.8,2073.4,7.22520216]
[1772758647765,6.10513945,2073.8,2073.4,7.22520216]
[1772758648865,0.002,2073.9,2073.5,5.97470796]
[1772758649066,6.12832533,2073.9,2073.5,5.97470796]
[1772758649246,7.33379609,2073.9,2073.5,5.97470796]
[1772758650257,0.002,2073.6,2073.5,5.97470796]
[1772758651066,0.002,2073.6,2073.4,1.497]
[1772758651772,0.002,2073.6,2073.4,2.70273906]
[1772758651970,0.002,2073.6,2073.4,8.9287585]
[1772758652761,0.002,2073.6,2073.4,7.72301944]
[1772758653059,0.002,2073.6,2073.4,8.92876632]
[1772758653976,0.002,2073.6,2073.4,7.72301944]
[1772758654273,0.002,2073.6,2073.4,8.92876462]
[1772758654574,0.002,2073.6,2073.4,8.92875881]
[1772758654969,0.002,2073.6,2073.4,7.72301944]
[1772758655171,0.002,2073.6,2073.4,8.92876519]
[1772758655547,5.8976529,2073.6,2073.4,1.497]
[1772758655872,5.8976529,2073.6,2073.4,2.70274068]
[1772758656074,5.8976529,2073.6,2073.4,1.497]
[1772758656257,5.8976529,2073.6,2073.4,2.7027409]
[1772758656658,0.002,2073.6,2073.4,2.7027409]
[1772758656860,0.002,2073.6,2073.4,1.497]